fUSD/lending_fUSD_20241219
["ID","MTS","AMOUNT","RATE_DAILY","PERIOD"]
[345982386,1734595849170,-320.0,0.00023,10]
[345982387,1734595849180,-150.0,0.00023,30]
[345982388,1734595849189,-500.0,0.00023,30]
[345982389,1734595849199,-500.0,0.00023,30]
[345982390,1734595849208,-500.0,0.00023,30]
[345982391,1734595849217,-500.0,0.00023,30]
[345982392,1734595849226,-535.08649483,0.00023,30]
[345982393,1734595849235,-600.000001,0.00023,2]
[345982394,1734595849244,-15027.57059551,0.00023,2]
[345982395,1734595849254,-700.0,0.00023,2]
[345982396,1734595849263,-500.0,0.00023011,4]
[345982397,1734595849272,-500.0,0.00023011,4]
[345982398,1734595849281,-500.0,0.00023011,4]
[345982399,1734595849291,-603.05291568,0.00023011,4]
[345982400,1734595849300,-783.93,0.00023011,4]
[345982401,1734595849309,-658.25,0.00023011,4]
[345982402,1734595849319,-500.0,0.00023011,4]
[345982403,1734595849328,-500.0,0.00023011,4]
[345982404,1734595849338,-500.0,0.00023011,4]
[345982405,1734595849347,-500.0,0.00023011,4]
[345982406,1734595849357,-542.9,0.00023011,4]
[345982407,1734595849366,-516.5,0.00023011,4]
[345982408,1734595849375,-500.0,0.00023011,4]
[345982409,1734595849385,-500.0,0.00023011,4]
[345982410,1734595849399,-513.88,0.00023011,4]
[345982411,1734595849408,-756.51,0.00023011,4]
[345982412,1734595849418,-559.18,0.00023011,4]
[345982413,1734595849427,-1943.35,0.00023011,4]
[345982414,1734595849436,-1371.76,0.00023011,4]
[345982415,1734595849444,-1115.28,0.00023011,4]
[345982416,1734595849454,-564.45,0.00023011,4]
[345982417,1734595849463,-659.01,0.00023011,4]
[345982418,1734595849472,-874.12,0.00023011,4]
[345982419,1734595849482,-500.0,0.00023011,4]
[345982420,1734595849491,-500.0,0.00023011,4]
[345982421,1734595849500,-500.0,0.00023011,4]
[345982422,1734595849513,-667.86,0.00023011,4]
[345982423,1734595849522,-1787.37,0.00023011,4]
[345982424,1734595849532,-500.0,0.00023011,4]
[345982425,1734595849541,-500.0,0.00023011,4]
[345982426,1734595849551,-500.0,0.00023011,4]
[345982427,1734595849559,-500.0,0.00023011,4]
[345982428,1734595849568,-183.58,0.00023011,4]
[345982429,1734595849578,-500.0,0.00023011,4]
[345982430,1734595849588,-500.0,0.00023011,4]
[345982431,1734595849597,-500.0,0.00023011,4]
[345982432,1734595849606,-500.0,0.00023011,4]
[345982433,1734595849615,-500.0,0.00023011,4]
[345982434,1734595849623,-500.0,0.00023011,4]
[345982435,1734595849633,-500.0,0.00023011,4]
[345982436,1734595849646,-620.42,0.00023011,4]
[345982437,1734595849655,-503.11242649,0.00023012,4]
[345982438,1734595849664,-273.37220578,0.00023012,4]
[345982439,1734595849673,-500.0,0.00023012,4]
[345982440,1734595849682,-288.69786422,0.00023012,4]
[345982441,1734595849692,-500.0,0.00023012,4]
[345982442,1734595849701,-412.60687697,0.00023012,4]
[345982443,1734595849711,-500.0,0.00023012,4]
[345982444,1734595849720,-500.0,0.00023012,4]
[345982445,1734595849729,-500.0,0.00023012,4]
[345982446,1734595849738,-500.0,0.00023012,4]
[345982447,1734595849747,-517.28,0.00023012,4]
[345982448,1734595849757,-721.93,0.00023012,4]
[345982449,1734595849766,-2731.73,0.00023012,4]
[345982450,1734595849775,-1364.66,0.00023012,4]
[345982451,1734595849784,-500.0,0.00023012,4]
[345982452,1734595849793,-500.0,0.00023012,4]
[345982453,1734595849803,-500.0,0.00023012,4]
[345982454,1734595849812,-500.0,0.00023012,4]
[345982455,1734595849821,-799.04,0.00023012,4]
[345982456,1734595849830,-500.0,0.00023012,4]
[345982457,1734595849839,-500.0,0.00023012,4]
[345982458,1734595849849,-500.0,0.00023012,4]
[345982459,1734595849858,-936.22,0.00023012,4]
[345982460,1734595849867,-1042.92,0.00023012,4]
[345982461,1734595849876,-756.63,0.00023012,4]
[345982462,1734595849885,-500.0,0.00023012,4]
[345982463,1734595849898,-556.2,0.00023012,4]
[345982464,1734595849907,-1185.07,0.00023012,4]
[345982465,1734595849916,-287.79,0.00023012,4]
[345982466,1734595849925,-500.0,0.00023012,4]
[345982467,1734595849935,-746.8,0.00023012,4]
[345982468,1734595849944,-500.0,0.00023012,4]
[345982469,1734595849954,-671.48,0.00023012,4]
[345982470,1734595849963,-645.56,0.00023012,4]
[345982471,1734595849973,-500.0,0.00023012,4]
[345982472,1734595849982,-870.67,0.00023012,4]
[345982473,1734595849991,-701.45,0.00023012,4]
[345982474,1734595850000,-614.19,0.00023012,4]
[345982475,1734595850010,-960.51,0.00023012,4]
[345982476,1734595850019,-500.0,0.00023012,4]
[345982477,1734595850028,-835.11,0.00023012,4]
[345982478,1734595850037,-1479.84,0.00023012,4]
[345982479,1734595850047,-500.0,0.00023013,4]
[345982480,1734595850056,-150.0,0.00023013,4]
[345982481,1734595850066,-2608.0,0.00023013,4]
[345982482,1734595850074,-1400.0,0.00023013,4]
[345982483,1734595850083,-500.0,0.00023013,4]
[345982484,1734595850092,-500.0,0.00023013,4]
[345982485,1734595850101,-500.0,0.00023013,4]
[345982486,1734595850110,-500.0,0.00023013,4]
[345982487,1734595850120,-264.97703318,0.00023013,4]
[345982488,1734595850129,-500.0,0.00023013,4]
[345982489,1734595850138,-500.0,0.00023013,2]
[345982490,1734595850151,-287.61,0.00023013,4]
[345982491,1734595850160,-500.0,0.00023013,4]
[345982492,1734595850169,-500.0,0.00023013,4]
[345982493,1734595850178,-797.22,0.00023013,2]
[345982494,1734595850187,-500.0,0.00023013,4]
[345982495,1734595850196,-500.0,0.00023013,4]
[345982496,1734595850205,-500.0,0.00023013,4]
[345982497,1734595850214,-500.0,0.00023013,4]
[345982498,1734595850223,-500.0,0.00023013,4]
[345982499,1734595850232,-500.0,0.00023013,4]
[345982500,1734595850242,-500.0,0.00023013,4]
[345982501,1734595850251,-500.0,0.00023013,4]
[345982502,1734595850260,-490.05,0.00023032,2]
[345982503,1734595850270,-508.87,0.00023032,2]
[345982504,1734595850279,-508.32,0.00023032,2]
[345982505,1734595850288,-314.6533,0.00023088,7]
[345982506,1734595850298,-230.47343364,0.00023089,2]
[345982507,1734595850307,-697.0,0.00023146,2]
[345982508,1734595850316,-200.0,0.00023146,2]
[345982509,1734595850326,-200.0,0.00023146,2]
[345982510,1734595850335,-322.75946518,0.00023161,4]
[345982511,1734595850344,-500.0,0.00023161,4]
[345982512,1734595850353,-500.0,0.00023161,4]
[345982513,1734595850362,-500.0,0.00023161,4]
[345982514,1734595850371,-569.99713335,0.00023198,2]
[345982515,1734595850380,-2208.0,0.000232,3]
[345982516,1734595850390,-682.01191196,0.00023221,2]
[345982517,1734595850403,-500.0,0.00023235,4]
[345982518,1734595850413,-500.0,0.00023235,4]
[345982519,1734595850422,-500.0,0.00023235,4]
[345982520,1734595850431,-154.84915752,0.00023235,4]
[345982521,1734595850441,-500.0,0.00023235,4]
[345982522,1734595850450,-500.0,0.00023235,4]
[345982523,1734595850459,-500.0,0.00023235,4]
[345982524,1734595850469,-500.0,0.00023235,4]
[345982525,1734595850478,-500.0,0.00023235,4]
[345982526,1734595850487,-500.0,0.00023235,4]
[345982527,1734595850497,-500.0,0.00023235,4]
[345982528,1734595850509,-235.57,0.00023235,4]
[345982529,1734595850519,-500.0,0.00023235,4]
[345982530,1734595850528,-500.0,0.00023235,4]
[345982531,1734595850540,-500.0,0.00023235,4]
[345982532,1734595850550,-500.0,0.00023235,4]
[345982533,1734595850559,-500.0,0.00023235,4]
[345982534,1734595850569,-500.0,0.00023235,4]
[345982535,1734595850578,-501.67474198,0.00023235,4]
[345982536,1734595850589,-500.0,0.00023235,4]
[345982537,1734595850598,-500.0,0.00023235,2]
[345982538,1734595850608,-346.3863698,0.00023235,4]
[345982539,1734595850617,-500.0,0.00023235,4]
[345982540,1734595850627,-500.0,0.00023235,4]
[345982541,1734595850636,-500.0,0.00023235,4]
[345982542,1734595850652,-500.0,0.00023235,4]
[345982543,1734595850661,-500.0,0.00023235,4]
[345982544,1734595850671,-500.0,0.00023235,4]
[345982545,1734595850681,-500.0,0.00023235,4]
[345982546,1734595850690,-500.0,0.00023235,4]
[345982547,1734595850700,-500.0,0.00023235,4]
[345982548,1734595850709,-512.62485425,0.00023235,4]
[345982549,1734595850719,-200.3317673,0.00023235,4]
[345982550,1734595850729,-500.0,0.00023235,4]
[345982551,1734595850739,-500.0,0.00023235,4]
[345982552,1734595850749,-500.0,0.00023235,4]
[345982553,1734595850758,-500.0,0.00023235,4]
[345982554,1734595850768,-589.50880098,0.00023235,4]
[345982555,1734595850778,-506.80616017,0.00023235,4]
[345982556,1734595850787,-500.0,0.00023235,4]
[345982557,1734595850797,-637.4,0.00023235,4]
[345982558,1734595850807,-388.90060499,0.00023235,4]
[345982559,1734595850818,-438.86578052,0.00023235,4]
[345982560,1734595850827,-176.69,0.00023235,4]
[345982561,1734595850836,-500.0,0.00023235,4]
[345982562,1734595850845,-583.47,0.00023235,4]
[345982563,1734595850855,-500.0,0.00023235,4]
[345982564,1734595850865,-500.0,0.00023235,4]
[345982565,1734595850875,-500.0,0.00023235,4]
[345982566,1734595850885,-526.28,0.00023235,4]
[345982567,1734595850899,-500.0,0.00023235,4]
[345982568,1734595850908,-500.0,0.00023235,4]
[345982569,1734595850919,-500.0,0.00023235,4]
[345982570,1734595850928,-500.0,0.00023235,4]
[345982571,1734595850938,-500.0,0.00023235,4]
[345982572,1734595850947,-358.36,0.00023235,4]
[345982573,1734595850956,-500.0,0.00023235,4]
[345982574,1734595850966,-500.0,0.00023235,4]
[345982575,1734595850975,-500.0,0.00023235,4]
[345982576,1734595850985,-421.37516704,0.00023235,4]
[345982577,1734595850995,-500.0,0.00023235,4]
[345982578,1734595851004,-500.0,0.00023235,4]
[345982579,1734595851014,-500.0,0.00023235,4]
[345982580,1734595851023,-500.0,0.00023235,4]
[345982581,1734595851033,-500.0,0.00023235,4]
[345982582,1734595851042,-254.04,0.00023235,4]
[345982583,1734595851052,-500.0,0.00023235,4]
[345982584,1734595851062,-510.12,0.00023235,4]
[345982585,1734595851072,-200.0,0.00023246,2]
[345982586,1734595851082,-11376.95757904,0.00023251,2]
[345982587,1734595851091,-154.088307,0.00023284,4]
[345982588,1734595851101,-500.0,0.00023285,4]
[345982589,1734595851110,-500.0,0.00023285,4]
[345982590,1734595851121,-500.0,0.00023285,4]
[345982591,1734595851130,-783.93,0.00023285,4]
[345982592,1734595851140,-658.25,0.00023285,4]
[345982593,1734595851151,-500.0,0.00023285,4]
[345982594,1734595851161,-500.0,0.00023285,4]
[345982595,1734595851172,-500.0,0.00023285,4]
[345982596,1734595851183,-500.0,0.00023285,4]
[345982597,1734595851194,-542.9,0.00023285,4]
[345982598,1734595851204,-487.52,0.00023285,4]
[345982599,1734595851214,-500.0,0.00023285,4]
[345982600,1734595851224,-513.88,0.00023285,4]
[345982601,1734595851234,-756.51,0.00023285,4]
[345982602,1734595851243,-559.18,0.00023285,4]
[345982603,1734595851253,-1943.35,0.00023285,4]
[345982604,1734595851262,-1371.76,0.00023285,4]
[345982605,1734595851272,-1115.28,0.00023285,4]
[345982606,1734595851282,-564.45,0.00023285,4]
[345982607,1734595851292,-659.01,0.00023285,4]
[345982608,1734595851301,-874.12,0.00023285,4]
[345982609,1734595851311,-560.02211552,0.00023285,4]
[345982610,1734595851321,-500.0,0.00023285,4]
[345982611,1734595851331,-500.0,0.00023285,4]
[345982612,1734595851341,-667.86,0.00023285,4]
[345982613,1734595851351,-1787.37,0.00023285,4]
[345982614,1734595851361,-289.47,0.00023285,4]
[345982615,1734595851371,-500.0,0.00023285,4]
[345982616,1734595851381,-500.0,0.00023285,4]
[345982617,1734595851393,-500.0,0.00023285,4]
[345982618,1734595851404,-500.0,0.00023285,4]
[345982619,1734595851415,-500.0,0.00023285,4]
[345982620,1734595851425,-500.0,0.00023285,4]
[345982621,1734595851434,-500.0,0.00023285,4]
[345982622,1734595851444,-500.0,0.00023285,4]
[345982623,1734595851453,-500.0,0.00023285,4]
[345982624,1734595851462,-500.0,0.00023285,4]
[345982625,1734595851471,-620.42,0.00023285,4]
[345982626,1734595851480,-246.37,0.00023286,4]
[345982627,1734595851490,-336.33,0.00023286,4]
[345982628,1734595851499,-356.32604797,0.00023286,4]
[345982629,1734595851513,-500.0,0.00023286,4]
[345982630,1734595851522,-517.28,0.00023286,4]
[345982631,1734595851532,-721.93,0.00023286,4]
[345982632,1734595851542,-2731.73,0.00023286,4]
[345982633,1734595851553,-1364.66,0.00023286,4]
[345982634,1734595851563,-500.0,0.00023286,4]
[345982635,1734595851572,-500.0,0.00023286,4]
[345982636,1734595851583,-500.0,0.00023286,4]
[345982637,1734595851593,-500.0,0.00023286,4]
[345982638,1734595851603,-799.04,0.00023286,4]
[345982639,1734595851612,-500.0,0.00023286,4]
[345982640,1734595851622,-500.0,0.00023286,4]
[345982641,1734595851631,-500.0,0.00023286,4]
[345982642,1734595851641,-936.22,0.00023286,4]
[345982643,1734595851651,-1042.92,0.00023286,4]
[345982644,1734595851661,-756.63,0.00023286,4]
[345982645,1734595851671,-500.0,0.00023286,4]
[345982646,1734595851680,-556.2,0.00023286,4]
[345982647,1734595851690,-1185.07,0.00023286,4]
[345982648,1734595851701,-500.0,0.00023286,4]
[345982649,1734595851710,-746.8,0.00023286,4]
[345982650,1734595851720,-500.0,0.00023286,4]
[345982651,1734595851730,-671.48,0.00023286,4]
[345982652,1734595851740,-645.56,0.00023286,4]
[345982653,1734595851751,-500.0,0.00023286,4]
[345982654,1734595851761,-870.67,0.00023286,4]
[345982655,1734595851770,-701.45,0.00023286,4]
[345982656,1734595851781,-614.19,0.00023286,4]
[345982657,1734595851792,-960.51,0.00023286,4]
[345982658,1734595851803,-500.0,0.00023286,4]
[345982659,1734595851814,-835.11,0.00023286,4]
[345982660,1734595851824,-1479.84,0.00023286,4]
[345982661,1734595851834,-500.0,0.00023287,4]
[345982662,1734595851844,-150.0,0.00023287,4]
[345982663,1734595851854,-2608.0,0.00023287,4]
[345982664,1734595851863,-1400.0,0.00023287,4]
[345982665,1734595851873,-500.0,0.00023287,4]
[345982666,1734595851884,-500.0,0.00023287,4]
[345982667,1734595851896,-500.0,0.00023287,4]
[345982668,1734595851906,-500.0,0.00023287,4]
[345982669,1734595851915,-500.0,0.00023287,4]
[345982670,1734595851925,-500.0,0.00023287,2]
[345982671,1734595851934,-500.0,0.00023287,4]
[345982672,1734595851944,-500.0,0.00023287,4]
[345982673,1734595851954,-1000.0,0.00023287,5]
[345982674,1734595851964,-1000.0,0.00023287,5]
[345982675,1734595851975,-1000.0,0.00023287,5]
[345982676,1734595851984,-1000.0,0.00023287,5]
[345982677,1734595851994,-1000.0,0.00023287,5]
[345982678,1734595852004,-645.48258423,0.00023287,5]
[345982679,1734595852014,-797.22,0.00023287,2]
[345982680,1734595852023,-500.0,0.00023287,4]
[345982681,1734595852033,-500.0,0.00023287,4]
[345982682,1734595852043,-500.0,0.00023287,4]
[345982683,1734595852052,-500.0,0.00023287,4]
[345982684,1734595852063,-500.0,0.00023287,4]
[345982685,1734595852072,-500.0,0.00023287,4]
[345982686,1734595852082,-153.4555941,0.00023287,4]
[345982687,1734595852093,-500.0,0.00023287,4]
[345982688,1734595852103,-314.6533,0.00023288,7]
[345982689,1734595852113,-23536.79483251,0.000233,7]
[345982690,1734595852123,-500.0,0.00023356,2]
[345982691,1734595852133,-200.0,0.00023377,2]
[345982692,1734595852144,-200.0,0.00023377,2]
[345982693,1734595852153,-518.10633,0.0002338,2]
[345982694,1734595852163,-500.0,0.00023435,4]
[345982695,1734595852173,-500.0,0.00023435,4]
[345982696,1734595852182,-500.0,0.00023435,4]
[345982697,1734595852192,-569.99713335,0.00023448,2]
[345982698,1734595852201,-230.47343364,0.00023451,2]
[345982699,1734595852211,-166.74844408,0.00023452,2]
[345982700,1734595852220,-166.01390347,0.0002346,2]
[345982701,1734595852230,-337.96,0.00023474,2]
[345982702,1734595852239,-314.6533,0.00023488,7]
[345982703,1734595852249,-153.57,0.0002349,2]
[345982704,1734595852258,-205.1,0.0002349,2]
[345982705,1734595852268,-150.0,0.00023508,2]
[345982706,1734595852277,-500.0,0.00023509,4]
[345982707,1734595852286,-500.0,0.00023509,4]
[345982708,1734595852296,-500.0,0.00023509,4]
[345982709,1734595852305,-239.66082182,0.00023509,4]
[345982710,1734595852315,-500.0,0.00023509,4]
[345982711,1734595852324,-500.0,0.00023509,4]
[345982712,1734595852334,-500.0,0.00023509,4]
[345982713,1734595852344,-500.0,0.00023509,4]
[345982714,1734595852353,-500.0,0.00023509,4]
[345982715,1734595852363,-602.09937412,0.00023509,4]
[345982716,1734595852372,-321.15,0.00023509,4]
[345982717,1734595852382,-500.0,0.00023509,2]
[345982718,1734595852394,-500.0,0.00023509,4]
[345982719,1734595852404,-500.0,0.00023509,4]
[345982720,1734595852414,-500.0,0.00023509,4]
[345982721,1734595852424,-243.2590366,0.00023509,4]
[345982722,1734595852434,-500.0,0.00023509,4]
[345982723,1734595852444,-500.0,0.00023509,4]
[345982724,1734595852453,-500.0,0.00023509,4]
[345982725,1734595852463,-500.0,0.00023509,4]
[345982726,1734595852474,-500.0,0.00023509,4]
[345982727,1734595852484,-500.0,0.00023509,4]
[345982728,1734595852494,-500.0,0.00023509,4]
[345982729,1734595852506,-500.0,0.00023509,4]
[345982730,1734595852517,-500.0,0.00023509,4]
[345982731,1734595852527,-526.28,0.00023509,4]
[345982732,1734595852537,-500.0,0.00023509,4]
[345982733,1734595852547,-500.0,0.00023509,4]
[345982734,1734595852557,-500.0,0.00023509,4]
[345982735,1734595852566,-500.0,0.00023509,4]
[345982736,1734595852576,-500.0,0.00023509,4]
[345982737,1734595852587,-500.0,0.00023509,4]
[345982738,1734595852597,-500.0,0.00023509,4]
[345982739,1734595852607,-526.97,0.00023509,4]
[345982740,1734595852618,-500.0,0.00023509,4]
[345982741,1734595852779,-530.06977902,0.00023509,4]
[345982742,1734595852790,-500.0,0.00023509,4]
[345982743,1734595852800,-500.0,0.00023509,4]
[345982744,1734595852810,-500.0,0.00023509,4]
[345982745,1734595852819,-510.12,0.00023509,4]
[345982746,1734595852829,-11376.95757904,0.0002354,2]
[345982747,1734595852838,-168.55,0.00023556,2]
[345982748,1734595852847,-500.0,0.00023559,4]
[345982749,1734595852857,-500.0,0.00023559,4]
[345982750,1734595852866,-500.0,0.00023559,4]
[345982751,1734595852876,-783.93,0.00023559,4]
[345982752,1734595852886,-658.25,0.00023559,4]
[345982753,1734595852898,-500.0,0.00023559,4]
[345982754,1734595852908,-500.0,0.00023559,4]
[345982755,1734595852917,-500.0,0.00023559,4]
[345982756,1734595852927,-500.0,0.00023559,4]
[345982757,1734595852936,-542.9,0.00023559,4]
[345982758,1734595852945,-500.0,0.00023559,4]
[345982759,1734595852955,-513.88,0.00023559,4]
[345982760,1734595852964,-756.51,0.00023559,4]
[345982761,1734595852974,-559.18,0.00023559,4]
[345982762,1734595852985,-1943.35,0.00023559,4]
[345982763,1734595852995,-1371.76,0.00023559,4]
[345982764,1734595853004,-1115.28,0.00023559,4]
[345982765,1734595853014,-564.45,0.00023559,4]
[345982766,1734595853024,-659.01,0.00023559,4]
[345982767,1734595853034,-874.12,0.00023559,4]
[345982768,1734595853043,-500.0,0.00023559,4]
[345982769,1734595853053,-500.0,0.00023559,4]
[345982770,1734595853062,-667.86,0.00023559,4]
[345982771,1734595853072,-1787.37,0.00023559,4]
[345982772,1734595853082,-500.0,0.00023559,4]
[345982773,1734595853091,-500.0,0.00023559,4]
[345982774,1734595853101,-500.0,0.00023559,4]
[345982775,1734595853110,-500.0,0.00023559,4]
[345982776,1734595853119,-500.0,0.00023559,4]
[345982777,1734595853129,-500.0,0.00023559,4]
[345982778,1734595853138,-500.0,0.00023559,4]
[345982779,1734595853151,-500.0,0.00023559,4]
[345982780,1734595853160,-500.0,0.00023559,4]
[345982781,1734595853170,-500.0,0.00023559,4]
[345982782,1734595853179,-620.42,0.00023559,4]
[345982783,1734595853188,-500.0,0.0002356,4]
[345982784,1734595853197,-517.28,0.0002356,4]
[345982785,1734595853207,-721.93,0.0002356,4]
[345982786,1734595853216,-2731.73,0.0002356,4]
[345982787,1734595853226,-1364.66,0.0002356,4]
[345982788,1734595853235,-500.0,0.0002356,4]
[345982789,1734595853244,-500.0,0.0002356,4]
[345982790,1734595853254,-500.0,0.0002356,4]
[345982791,1734595853264,-500.0,0.0002356,4]
[345982792,1734595853273,-799.04,0.0002356,4]
[345982793,1734595853283,-500.0,0.0002356,4]
[345982794,1734595853292,-500.0,0.0002356,4]
[345982795,1734595853302,-500.0,0.0002356,4]
[345982796,1734595853311,-936.22,0.0002356,4]
[345982797,1734595853321,-1042.92,0.0002356,4]
[345982798,1734595853330,-756.63,0.0002356,4]
[345982799,1734595853340,-500.0,0.0002356,4]
[345982800,1734595853349,-556.2,0.0002356,4]
[345982801,1734595853358,-1185.07,0.0002356,4]
[345982802,1734595853367,-500.0,0.0002356,4]
[345982803,1734595853377,-746.8,0.0002356,4]
[345982804,1734595853386,-500.0,0.0002356,4]
[345982805,1734595853397,-671.48,0.0002356,4]
[345982806,1734595853406,-645.56,0.0002356,4]
[345982807,1734595853416,-500.0,0.0002356,4]
[345982808,1734595853426,-870.67,0.0002356,4]
[345982809,1734595853435,-701.45,0.0002356,4]
[345982810,1734595853444,-614.19,0.0002356,4]
[345982811,1734595853454,-960.51,0.0002356,4]
[345982812,1734595853464,-500.0,0.0002356,4]
[345982813,1734595853473,-835.11,0.0002356,4]
[345982814,1734595853482,-1479.84,0.0002356,4]
[345982815,1734595853492,-500.0,0.00023561,4]
[345982816,1734595853502,-213.14739058,0.00023561,4]
[345982817,1734595853516,-2608.0,0.00023561,4]
[345982818,1734595853525,-1400.0,0.00023561,4]
[345982819,1734595853535,-500.0,0.00023561,4]
[345982820,1734595853544,-500.0,0.00023561,4]
[345982821,1734595853554,-500.0,0.00023561,4]
[345982822,1734595853563,-500.0,0.00023561,4]
[345982823,1734595853573,-500.0,0.00023561,4]
[345982824,1734595853583,-500.0,0.00023561,2]
[345982825,1734595853593,-500.0,0.00023561,4]
[345982826,1734595853602,-500.0,0.00023561,4]
[345982827,1734595853611,-797.22,0.00023561,2]
[345982828,1734595853620,-497.18,0.00023561,4]
[345982829,1734595853630,-500.0,0.00023561,4]
[345982830,1734595853639,-500.0,0.00023561,4]
[345982831,1734595853650,-500.0,0.00023561,4]
[345982832,1734595853659,-500.0,0.00023561,4]
[345982833,1734595853668,-500.0,0.00023561,4]
[345982834,1734595853678,-500.0,0.00023561,4]
[345982835,1734595853687,-250.20984943,0.00023578,2]
[345982836,1734595853696,-1200.0,0.000236,8]
[345982837,1734595853706,-150.0,0.00023633,4]
[345982838,1734595853715,-166.74844408,0.00023644,2]
[345982839,1734595853725,-250.20984941,0.00023681,2]
[345982840,1734595853733,-314.6533,0.00023688,7]
[345982841,1734595853742,-500.0,0.00023689,7]
[345982842,1734595853752,-569.99713335,0.00023699,2]
[345982843,1734595853761,-19602.40374221,0.000237,2]
[345982844,1734595853771,-1800.0,0.000237,8]
[345982845,1734595853780,-500.0,0.00023709,4]
[345982846,1734595853789,-500.0,0.00023709,4]
[345982847,1734595853799,-500.0,0.00023709,4]
[345982848,1734595853808,-500.0,0.00023783,4]
[345982849,1734595853817,-500.0,0.00023783,4]
[345982850,1734595853826,-500.0,0.00023783,4]
[345982851,1734595853835,-500.0,0.00023783,4]
[345982852,1734595853844,-497.07,0.00023783,4]
[345982853,1734595853854,-500.0,0.00023783,4]
[345982854,1734595853863,-500.0,0.00023783,4]
[345982855,1734595853871,-500.0,0.00023783,4]
[345982856,1734595853880,-500.0,0.00023783,2]
[345982857,1734595853890,-384.65,0.00023783,4]
[345982858,1734595853903,-500.0,0.00023783,4]
[345982859,1734595853915,-500.0,0.00023783,4]
[345982860,1734595853925,-500.0,0.00023783,4]
[345982861,1734595853936,-500.0,0.00023783,4]
[345982862,1734595853945,-294.15,0.00023783,4]
[345982863,1734595853954,-500.0,0.00023783,4]
[345982864,1734595853963,-500.0,0.00023783,4]
[345982865,1734595853972,-500.0,0.00023783,4]
[345982866,1734595853981,-500.0,0.00023783,4]
[345982867,1734595853991,-500.0,0.00023783,4]
[345982868,1734595854000,-500.0,0.00023783,4]
[345982869,1734595854009,-526.28,0.00023783,4]
[345982870,1734595854018,-500.0,0.00023783,4]
[345982871,1734595854027,-298.18,0.00023783,4]
[345982872,1734595854035,-400.76,0.00023783,4]
[345982873,1734595854045,-500.0,0.00023783,4]
[345982874,1734595854054,-500.0,0.00023783,4]
[345982875,1734595854063,-500.0,0.00023783,4]
[345982876,1734595854072,-500.0,0.00023783,4]
[345982877,1734595854080,-500.0,0.00023783,4]
[345982878,1734595854090,-500.0,0.00023783,4]
[345982879,1734595854099,-500.0,0.00023783,4]
[345982880,1734595854108,-500.0,0.00023783,4]
[345982881,1734595854118,-510.12,0.00023783,4]
[345982882,1734595854128,-2500.0,0.000238,8]
[345982883,1734595854137,-186.058657,0.00023813,4]
[345982884,1734595854151,-154.088307,0.00023813,4]
[345982885,1734595854160,-230.47343364,0.00023814,2]